[Event "Titled Tuesday Blitz October 31 Early 2023"]
[White "Babarsik1977"]
[Black "Heinemann, Josefine"]
[BlackFideId "12900460"]
[WhiteElo "2318"]
[BlackElo "2495"]
[Result "0-1"]
[Round "10"]
[TimeControl "180+1"]
[Date "2023.10.31"]
[WhiteClock "0:00:17"]
[BlackClock "0:00:18"]
[Board "103"]

1. e4 {[%clk 0:03:00]}  c5 {[%clk 0:02:52]} 2. Nc3 {[%clk 0:02:58]}  d6 {[%clk 0:02:52]} 3. f4 {[%clk 0:02:57]}  g6 {[%clk 0:02:50]} 4. Nf3 {[%clk 0:02:57]}  Bg7 {[%clk 0:02:50]} 5. Bc4 {[%clk 0:02:58]}  Nc6 {[%clk 0:02:51]} 6. d3 {[%clk 0:02:58]}  e6 {[%clk 0:02:51]} 7. O-O {[%clk 0:02:56]}  Nge7 {[%clk 0:02:52]} 8. Qe1 {[%clk 0:02:56]}  O-O {[%clk 0:02:52]} 9. Qh4 {[%clk 0:02:55]}  d5 {[%clk 0:02:50]} 10. Bb3 {[%clk 0:02:54]}  Nd4 {[%clk 0:02:43]} 11. f5 {[%clk 0:02:52]}  gxf5 {[%clk 0:02:27]} 12. Bh6 {[%clk 0:02:48]}  fxe4 {[%clk 0:02:02]} 13. dxe4 {[%clk 0:02:47]}  Ng6 {[%clk 0:02:02]} 14. Qh5 {[%clk 0:02:47]}  Nxf3+ {[%clk 0:01:27]} 15. Rxf3 {[%clk 0:02:46]}  Qh4 {[%clk 0:01:23]} 16. Qxh4 {[%clk 0:02:39]}  Nxh4 {[%clk 0:01:23]} 17. Rg3 {[%clk 0:02:36]}  Ng6 {[%clk 0:01:23]} 18. Bxg7 {[%clk 0:02:36]}  Kxg7 {[%clk 0:01:24]} 19. exd5 {[%clk 0:02:35]}  e5 {[%clk 0:01:19]} 20. Ne4 {[%clk 0:02:23]}  b6 {[%clk 0:01:15]} 21. Nd6 {[%clk 0:02:05]}  Bd7 {[%clk 0:01:04]} 22. Rf1 {[%clk 0:02:03]}  f5 {[%clk 0:01:01]} 23. c4 {[%clk 0:01:52]}  Rf6 {[%clk 0:01:00]} 24. Nb5 {[%clk 0:01:38]}  f4 {[%clk 0:00:56]} 25. Rd3 {[%clk 0:01:25]}  e4 {[%clk 0:00:55]} 26. Rdd1 {[%clk 0:01:18]}  Bxb5 {[%clk 0:00:54]} 27. cxb5 {[%clk 0:01:18]}  Rd8 {[%clk 0:00:55]} 28. Rfe1 {[%clk 0:01:04]}  e3 {[%clk 0:00:51]} 29. Kf1 {[%clk 0:01:01]}  Nh4 {[%clk 0:00:41]} 30. g3 {[%clk 0:00:51]}  Nf3 {[%clk 0:00:40]} 31. Re2 {[%clk 0:00:46]}  Nd4 {[%clk 0:00:40]} 32. gxf4 {[%clk 0:00:44]}  Rxf4+ {[%clk 0:00:40]} 33. Ke1 {[%clk 0:00:42]}  Nxe2 {[%clk 0:00:27]} 34. Kxe2 {[%clk 0:00:42]}  Re8 {[%clk 0:00:23]} 35. Rg1+ {[%clk 0:00:41]}  Kf6 {[%clk 0:00:23]} 36. Rg2 {[%clk 0:00:41]}  Rd4 {[%clk 0:00:19]} 37. Kf3 {[%clk 0:00:37]}  Rd2 {[%clk 0:00:19]} 38. Re2 {[%clk 0:00:37]}  Rxe2 {[%clk 0:00:19]} 39. Kxe2 {[%clk 0:00:37]}  Kf5 {[%clk 0:00:19]} 40. a3 {[%clk 0:00:32]}  Kf4 {[%clk 0:00:19]} 41. Bc4 {[%clk 0:00:32]}  Rd8 {[%clk 0:00:19]} 42. b3 {[%clk 0:00:32]}  Rd6 {[%clk 0:00:19]} 43. a4 {[%clk 0:00:32]}  Rg6 {[%clk 0:00:19]} 44. h4 {[%clk 0:00:27]}  Rg2+ {[%clk 0:00:18]} 45. Kf1 {[%clk 0:00:26]}  Rd2 {[%clk 0:00:18]} 46. Ke1 {[%clk 0:00:26]}  h6 {[%clk 0:00:18]} 47. h5 {[%clk 0:00:25]}  Kg4 {[%clk 0:00:19]} 48. Be2+ {[%clk 0:00:24]}  Kh4 {[%clk 0:00:19]} 49. Bf3 {[%clk 0:00:20]}  Kg3 {[%clk 0:00:19]} 50. Be2 {[%clk 0:00:17]}  Rxd5 {[%clk 0:00:18]} 0-1


[Site "https://www.chess.com"]

[Event "Titled Tuesday Blitz October 31 Early 2023"]
[White "Rosenberg, Evan S"]
[Black "alfianasybullina"]
[WhiteFideId "2019299"]
[WhiteElo "2455"]
[BlackElo "2303"]
[Result "1-0"]
[Round "10"]
[TimeControl "180+1"]
[Date "2023.10.31"]
[WhiteClock "0:01:56"]
[BlackClock "0:00:38"]
[Board "104"]

1. d4 {[%clk 0:03:00]}  Nf6 {[%clk 0:02:55]} 2. Nf3 {[%clk 0:02:59]}  c5 {[%clk 0:02:52]} 3. d5 {[%clk 0:02:58]}  e6 {[%clk 0:02:41]} 4. Nc3 {[%clk 0:02:55]}  exd5 {[%clk 0:02:30]} 5. Nxd5 {[%clk 0:02:55]}  Nxd5 {[%clk 0:02:25]} 6. Qxd5 {[%clk 0:02:54]}  Nc6 {[%clk 0:02:24]} 7. Bg5 {[%clk 0:02:36]}  Be7 {[%clk 0:02:14]} 8. Bxe7 {[%clk 0:02:33]}  Qxe7 {[%clk 0:02:13]} 9. c3 {[%clk 0:02:31]}  b5 {[%clk 0:02:00]} 10. e3 {[%clk 0:02:28]}  a6 {[%clk 0:01:52]} 11. Bd3 {[%clk 0:02:27]}  Bb7 {[%clk 0:01:46]} 12. O-O {[%clk 0:02:11]}  O-O {[%clk 0:01:36]} 13. Rad1 {[%clk 0:02:05]}  Nd8 {[%clk 0:01:30]} 14. Bxh7+ {[%clk 0:01:56]}  Kxh7 {[%clk 0:01:08]} 15. Qh5+ {[%clk 0:01:55]}  Kg8 {[%clk 0:00:38]} 16. Ng5 {[%clk 0:01:56]} 1-0


[Site "https://www.chess.com"]

[Event "Titled Tuesday Blitz October 31 Early 2023"]
[White "Pumpkin_in_moonlight"]
[Black "DonCiao"]
[WhiteElo "2346"]
[BlackElo "2154"]
[Result "1-0"]
[Round "10"]
[TimeControl "180+1"]
[Date "2023.10.31"]
[WhiteClock "0:00:21"]
[BlackClock "0:00:00"]
[Board "108"]

1. e4 {[%clk 0:03:00]}  c5 {[%clk 0:02:59]} 2. Nf3 {[%clk 0:02:59]}  Nc6 {[%clk 0:02:59]} 3. Nc3 {[%clk 0:02:58]}  g6 {[%clk 0:02:50]} 4. g3 {[%clk 0:02:40]}  Bg7 {[%clk 0:02:50]} 5. Bg2 {[%clk 0:02:39]}  e6 {[%clk 0:02:46]} 6. O-O {[%clk 0:02:35]}  Nge7 {[%clk 0:02:46]} 7. d3 {[%clk 0:02:32]}  O-O {[%clk 0:02:45]} 8. Be3 {[%clk 0:02:22]}  Nd4 {[%clk 0:02:43]} 9. Rb1 {[%clk 0:02:11]}  d5 {[%clk 0:02:42]} 10. exd5 {[%clk 0:02:03]}  exd5 {[%clk 0:02:38]} 11. Bxd4 {[%clk 0:01:55]}  cxd4 {[%clk 0:02:37]} 12. Ne2 {[%clk 0:01:54]}  Nc6 {[%clk 0:02:33]} 13. b4 {[%clk 0:01:52]}  b5 {[%clk 0:02:27]} 14. a3 {[%clk 0:01:45]}  Re8 {[%clk 0:02:07]} 15. Nf4 {[%clk 0:01:45]}  Bg4 {[%clk 0:01:31]} 16. h3 {[%clk 0:01:43]}  Be6 {[%clk 0:01:27]} 17. Re1 {[%clk 0:01:26]}  Qd6 {[%clk 0:01:23]} 18. Ng5 {[%clk 0:01:20]}  Bh6 {[%clk 0:01:17]} 19. Ngxe6 {[%clk 0:00:56]}  fxe6 {[%clk 0:01:16]} 20. Qg4 {[%clk 0:00:28]}  Bxf4 {[%clk 0:01:03]} 21. gxf4 {[%clk 0:00:27]}  Rac8 {[%clk 0:00:45]} 22. Re2 {[%clk 0:00:25]}  Nd8 {[%clk 0:00:42]} 23. Rbe1 {[%clk 0:00:23]}  Rc3 {[%clk 0:00:38]} 24. h4 {[%clk 0:00:22]}  Kg7 {[%clk 0:00:18]} 25. h5 {[%clk 0:00:22]}  Rxa3 {[%clk 0:00:00]} 26. Re5 {[%clk 0:00:21]} 1-0


[Site "https://www.chess.com"]

[Event "Titled Tuesday Blitz October 31 Early 2023"]
[White "Burke, Carol Ann"]
[Black "Silvestre, Christian"]
[WhiteFideId "11104643"]
[BlackFideId "30956269"]
[WhiteElo "2713"]
[BlackElo "2123"]
[Result "1-0"]
[Round "10"]
[TimeControl "180+1"]
[Date "2023.10.31"]
[WhiteClock "0:02:10"]
[BlackClock "0:00:17"]
[Board "109"]

1. d4 {[%clk 0:03:00]}  e5 {[%clk 0:00:53]} 2. dxe5 {[%clk 0:02:59]}  Nc6 {[%clk 0:00:51]} 3. Nf3 {[%clk 0:02:58]}  Qe7 {[%clk 0:00:51]} 4. Nc3 {[%clk 0:02:58]}  Nxe5 {[%clk 0:00:51]} 5. Nd5 {[%clk 0:02:58]}  Nxf3+ {[%clk 0:00:50]} 6. gxf3 {[%clk 0:02:59]}  Qd8 {[%clk 0:00:50]} 7. Bf4 {[%clk 0:02:59]}  d6 {[%clk 0:00:50]} 8. e4 {[%clk 0:03:00]}  Ne7 {[%clk 0:00:48]} 9. Bc4 {[%clk 0:02:31]}  Be6 {[%clk 0:00:47]} 10. Qd3 {[%clk 0:02:25]}  Bxd5 {[%clk 0:00:47]} 11. exd5 {[%clk 0:02:24]}  Ng6 {[%clk 0:00:46]} 12. Bb5+ {[%clk 0:02:13]}  c6 {[%clk 0:00:24]} 13. dxc6 {[%clk 0:02:12]}  Nxf4 {[%clk 0:00:17]} 14. c7+ {[%clk 0:02:10]} 1-0


[Site "https://www.chess.com"]

[Event "Titled Tuesday Blitz October 31 Early 2023"]
[White "vishwa_vijeta"]
[Black "Petrova, Irina"]
[BlackFideId "14124122"]
[WhiteElo "2478"]
[BlackElo "2310"]
[Result "1/2-1/2"]
[Round "10"]
[TimeControl "180+1"]
[Date "2023.10.31"]
[WhiteClock "0:00:19"]
[BlackClock "0:00:57"]
[Board "111"]

1. e4 {[%clk 0:03:00]}  d6 {[%clk 0:03:00]} 2. d4 {[%clk 0:02:59]}  Nf6 {[%clk 0:02:59]} 3. Nc3 {[%clk 0:02:59]}  e5 {[%clk 0:02:50]} 4. dxe5 {[%clk 0:02:59]}  dxe5 {[%clk 0:02:51]} 5. Qxd8+ {[%clk 0:03:00]}  Kxd8 {[%clk 0:02:52]} 6. Nf3 {[%clk 0:03:00]}  Bd6 {[%clk 0:02:32]} 7. Bg5 {[%clk 0:02:52]}  Be6 {[%clk 0:02:30]} 8. O-O-O {[%clk 0:02:49]}  Nd7 {[%clk 0:02:28]} 9. Nb5 {[%clk 0:02:48]}  Ke7 {[%clk 0:02:26]} 10. Nxd6 {[%clk 0:02:46]}  cxd6 {[%clk 0:02:27]} 11. Nd2 {[%clk 0:02:41]}  Rhc8 {[%clk 0:02:21]} 12. Kb1 {[%clk 0:02:38]}  a6 {[%clk 0:02:20]} 13. Bd3 {[%clk 0:02:28]}  b5 {[%clk 0:02:18]} 14. Rhf1 {[%clk 0:02:18]}  h6 {[%clk 0:02:16]} 15. Be3 {[%clk 0:02:15]}  g5 {[%clk 0:02:13]} 16. f3 {[%clk 0:02:12]}  Nc5 {[%clk 0:02:12]} 17. Bxc5 {[%clk 0:02:08]}  Rxc5 {[%clk 0:02:13]} 18. Nb3 {[%clk 0:02:02]}  Rc7 {[%clk 0:02:12]} 19. Na5 {[%clk 0:02:00]}  Rac8 {[%clk 0:02:10]} 20. Rc1 {[%clk 0:01:47]}  Nd7 {[%clk 0:02:07]} 21. Be2 {[%clk 0:01:37]}  Nb6 {[%clk 0:02:04]} 22. c3 {[%clk 0:01:17]}  Nc4 {[%clk 0:02:03]} 23. Nxc4 {[%clk 0:01:13]}  Bxc4 {[%clk 0:02:04]} 24. Bxc4 {[%clk 0:01:12]}  Rxc4 {[%clk 0:02:05]} 25. Rf2 {[%clk 0:01:09]}  Ke6 {[%clk 0:01:51]} 26. Rcf1 {[%clk 0:01:07]}  b4 {[%clk 0:01:46]} 27. cxb4 {[%clk 0:01:07]}  Rxb4 {[%clk 0:01:47]} 28. g3 {[%clk 0:01:06]}  a5 {[%clk 0:01:43]} 29. f4 {[%clk 0:01:04]}  gxf4 {[%clk 0:01:40]} 30. gxf4 {[%clk 0:01:05]}  Rxe4 {[%clk 0:01:38]} 31. fxe5 {[%clk 0:01:05]}  dxe5 {[%clk 0:01:38]} 32. Rxf7 {[%clk 0:00:50]}  Re2 {[%clk 0:01:35]} 33. R7f6+ {[%clk 0:00:43]}  Kd5 {[%clk 0:01:35]} 34. Rxh6 {[%clk 0:00:35]}  Rcc2 {[%clk 0:01:33]} 35. Rd1+ {[%clk 0:00:30]}  Kc5 {[%clk 0:01:28]} 36. Rc1 {[%clk 0:00:27]}  Rxc1+ {[%clk 0:01:21]} 37. Kxc1 {[%clk 0:00:28]}  e4 {[%clk 0:01:21]} 38. h4 {[%clk 0:00:26]}  e3 {[%clk 0:01:20]} 39. Rh8 {[%clk 0:00:26]}  Rh2 {[%clk 0:01:19]} 40. Kd1 {[%clk 0:00:22]}  Rxb2 {[%clk 0:01:10]} 41. Re8 {[%clk 0:00:19]}  Rxa2 {[%clk 0:01:07]} 42. Rxe3 {[%clk 0:00:18]}  Rh2 {[%clk 0:01:07]} 43. Re5+ {[%clk 0:00:18]}  Kb4 {[%clk 0:01:07]} 44. h5 {[%clk 0:00:17]}  a4 {[%clk 0:01:07]} 45. Kc1 {[%clk 0:00:17]}  a3 {[%clk 0:01:07]} 46. Kb1 {[%clk 0:00:17]}  Kb3 {[%clk 0:01:04]} 47. Re3+ {[%clk 0:00:18]}  Kb4 {[%clk 0:01:03]} 48. Re4+ {[%clk 0:00:18]}  Kb3 {[%clk 0:01:03]} 49. Re3+ {[%clk 0:00:19]}  Kb4 {[%clk 0:01:01]} 50. Re4+ {[%clk 0:00:19]}  Kb3 {[%clk 0:00:57]} 51. Re3+ {[%clk 0:00:19]} 1/2-1/2


[Site "https://www.chess.com"]

[Event "Titled Tuesday Blitz October 31 Early 2023"]
[White "Arutla, Aditya"]
[Black "Viskelis, Darius"]
[WhiteFideId "30961998"]
[BlackFideId "12800830"]
[WhiteElo "2471"]
[BlackElo "2303"]
[Result "0-1"]
[Round "10"]
[TimeControl "180+1"]
[Date "2023.10.31"]
[WhiteClock "0:00:01"]
[BlackClock "0:00:12"]
[Board "112"]

1. d4 {[%clk 0:02:57]}  d5 {[%clk 0:02:59]} 2. c4 {[%clk 0:02:56]}  e6 {[%clk 0:03:00]} 3. Nc3 {[%clk 0:02:55]}  c5 {[%clk 0:03:00]} 4. cxd5 {[%clk 0:02:51]}  cxd4 {[%clk 0:03:00]} 5. Qa4+ {[%clk 0:02:50]}  Bd7 {[%clk 0:02:59]} 6. Qxd4 {[%clk 0:02:50]}  exd5 {[%clk 0:02:59]} 7. Qxd5 {[%clk 0:02:43]}  Nf6 {[%clk 0:02:59]} 8. Qd1 {[%clk 0:02:35]}  Nc6 {[%clk 0:02:59]} 9. Nf3 {[%clk 0:02:30]}  Bb4 {[%clk 0:02:59]} 10. Bd2 {[%clk 0:02:08]}  O-O {[%clk 0:02:48]} 11. e3 {[%clk 0:01:57]}  Bxc3 {[%clk 0:02:48]} 12. Bxc3 {[%clk 0:01:54]}  Ne4 {[%clk 0:02:48]} 13. Bd3 {[%clk 0:01:53]}  Nxc3 {[%clk 0:02:46]} 14. bxc3 {[%clk 0:01:54]}  Bg4 {[%clk 0:02:46]} 15. Be4 {[%clk 0:01:44]}  Qf6 {[%clk 0:02:27]} 16. O-O {[%clk 0:01:39]}  Rfd8 {[%clk 0:02:24]} 17. Qe2 {[%clk 0:01:34]}  Ne5 {[%clk 0:02:22]} 18. Rfd1 {[%clk 0:01:25]}  Nxf3+ {[%clk 0:01:46]} 19. Bxf3 {[%clk 0:01:26]}  Bxf3 {[%clk 0:01:46]} 20. Qxf3 {[%clk 0:01:25]}  Qxc3 {[%clk 0:01:39]} 21. Qxb7 {[%clk 0:01:15]}  Rac8 {[%clk 0:01:36]} 22. h3 {[%clk 0:01:08]}  a5 {[%clk 0:01:33]} 23. Qe7 {[%clk 0:00:58]}  Rxd1+ {[%clk 0:01:12]} 24. Rxd1 {[%clk 0:00:57]}  h6 {[%clk 0:01:12]} 25. Qd7 {[%clk 0:00:30]}  Qc2 {[%clk 0:00:58]} 26. Rd2 {[%clk 0:00:20]}  Qc1+ {[%clk 0:00:43]} 27. Kh2 {[%clk 0:00:18]}  g6 {[%clk 0:00:35]} 28. Qd3 {[%clk 0:00:07]}  h5 {[%clk 0:00:31]} 29. g3 {[%clk 0:00:03]}  h4 {[%clk 0:00:30]} 30. Qe2 {[%clk 0:00:03]}  hxg3+ {[%clk 0:00:29]} 31. fxg3 {[%clk 0:00:04]}  Qc3 {[%clk 0:00:25]} 32. Qf2 {[%clk 0:00:03]}  Rb8 {[%clk 0:00:20]} 33. Kg2 {[%clk 0:00:03]}  a4 {[%clk 0:00:19]} 34. Re2 {[%clk 0:00:02]}  a3 {[%clk 0:00:19]} 35. h4 {[%clk 0:00:03]}  Rb2 {[%clk 0:00:19]} 36. Kf3 {[%clk 0:00:02]}  Qc6+ {[%clk 0:00:13]} 37. Kg4 {[%clk 0:00:02]}  Qe6+ {[%clk 0:00:12]} 38. Kf3 {[%clk 0:00:01]}  Qxa2 {[%clk 0:00:12]} 39. Rxb2 {[%clk 0:00:01]}  Qxb2 {[%clk 0:00:12]} 40. Kg4 {[%clk 0:00:01]}  Qxf2 {[%clk 0:00:12]} 0-1


[Site "https://www.chess.com"]

[Event "Titled Tuesday Blitz October 31 Early 2023"]
[White "Kiseljova, Marya"]
[Black "Novikova, Galina"]
[WhiteFideId "4155009"]
[BlackFideId "4157095"]
[WhiteElo "2232"]
[BlackElo "2399"]
[Result "0-1"]
[Round "10"]
[TimeControl "180+1"]
[Date "2023.10.31"]
[WhiteClock "0:00:00"]
[BlackClock "0:00:39"]
[Board "115"]

1. d4 {[%clk 0:03:00]}  e5 {[%clk 0:02:59]} 2. dxe5 {[%clk 0:02:59]}  d6 {[%clk 0:03:00]} 3. exd6 {[%clk 0:02:58]}  Bxd6 {[%clk 0:03:01]} 4. Nf3 {[%clk 0:02:56]}  Nc6 {[%clk 0:03:01]} 5. e3 {[%clk 0:02:48]}  Bg4 {[%clk 0:03:00]} 6. Be2 {[%clk 0:02:48]}  Qe7 {[%clk 0:03:01]} 7. c3 {[%clk 0:02:40]}  O-O-O {[%clk 0:03:00]} 8. Qc2 {[%clk 0:02:40]}  Nf6 {[%clk 0:02:59]} 9. Nbd2 {[%clk 0:02:39]}  h5 {[%clk 0:02:52]} 10. Nc4 {[%clk 0:02:33]}  Bc5 {[%clk 0:02:49]} 11. b4 {[%clk 0:02:30]}  Bb6 {[%clk 0:02:34]} 12. Nxb6+ {[%clk 0:02:30]}  cxb6 {[%clk 0:02:32]} 13. Bb2 {[%clk 0:02:11]}  Kb8 {[%clk 0:02:31]} 14. a4 {[%clk 0:02:09]}  Rhe8 {[%clk 0:02:24]} 15. h3 {[%clk 0:01:43]}  Bc8 {[%clk 0:02:23]} 16. Nd4 {[%clk 0:01:42]}  Ne5 {[%clk 0:02:19]} 17. O-O-O {[%clk 0:01:30]}  Bd7 {[%clk 0:02:09]} 18. Bb5 {[%clk 0:01:25]}  Rc8 {[%clk 0:02:08]} 19. Kb1 {[%clk 0:01:17]}  Nc4 {[%clk 0:02:03]} 20. Bxd7 {[%clk 0:01:13]}  Nxd7 {[%clk 0:02:01]} 21. Nb5 {[%clk 0:01:06]}  a6 {[%clk 0:01:58]} 22. Nd4 {[%clk 0:01:03]}  Nde5 {[%clk 0:01:55]} 23. Bc1 {[%clk 0:00:59]}  g6 {[%clk 0:01:32]} 24. f4 {[%clk 0:00:57]}  Nd7 {[%clk 0:01:30]} 25. Qd3 {[%clk 0:00:51]}  Nf6 {[%clk 0:01:25]} 26. Rhe1 {[%clk 0:00:50]}  Ne4 {[%clk 0:01:24]} 27. Bb2 {[%clk 0:00:44]}  Nxb2 {[%clk 0:01:23]} 28. Kxb2 {[%clk 0:00:44]}  Rxc3 {[%clk 0:01:23]} 29. Qxc3 {[%clk 0:00:40]}  Nxc3 {[%clk 0:01:24]} 30. Kxc3 {[%clk 0:00:41]}  Rc8+ {[%clk 0:01:24]} 31. Kb3 {[%clk 0:00:40]}  a5 {[%clk 0:01:20]} 32. Nc2 {[%clk 0:00:30]}  Qe6+ {[%clk 0:01:19]} 33. Kb2 {[%clk 0:00:26]}  Qc4 {[%clk 0:01:18]} 34. Rc1 {[%clk 0:00:18]}  axb4 {[%clk 0:01:16]} 35. Nd4 {[%clk 0:00:16]}  Qd3 {[%clk 0:01:12]} 36. Rxc8+ {[%clk 0:00:15]}  Kxc8 {[%clk 0:01:13]} 37. Rc1+ {[%clk 0:00:16]}  Kb8 {[%clk 0:01:13]} 38. Nc2 {[%clk 0:00:13]}  Qc3+ {[%clk 0:01:13]} 39. Kb1 {[%clk 0:00:12]}  b3 {[%clk 0:01:14]} 40. Na3 {[%clk 0:00:12]}  Qxe3 {[%clk 0:01:10]} 41. Kb2 {[%clk 0:00:11]}  Qxf4 {[%clk 0:01:10]} 42. Rc3 {[%clk 0:00:09]}  Qf2+ {[%clk 0:01:07]} 43. Kxb3 {[%clk 0:00:09]}  Qxg2 {[%clk 0:01:08]} 44. Nb5 {[%clk 0:00:09]}  Qd5+ {[%clk 0:01:05]} 45. Kb4 {[%clk 0:00:09]}  Qe4+ {[%clk 0:01:02]} 46. Rc4 {[%clk 0:00:09]}  Qb1+ {[%clk 0:01:01]} 47. Kc3 {[%clk 0:00:09]}  Qe1+ {[%clk 0:00:59]} 48. Kd4 {[%clk 0:00:09]}  Qh4+ {[%clk 0:00:57]} 49. Kd5 {[%clk 0:00:06]}  Qxh3 {[%clk 0:00:57]} 50. Re4 {[%clk 0:00:05]}  Qf3 {[%clk 0:00:43]} 51. Kd4 {[%clk 0:00:04]}  Qf6+ {[%clk 0:00:43]} 52. Kd5 {[%clk 0:00:01]}  Qc6+ {[%clk 0:00:43]} 53. Kd4 {[%clk 0:00:00]}  h4 {[%clk 0:00:39]} 0-1


[Site "https://www.chess.com"]

[Event "Titled Tuesday Blitz October 31 Early 2023"]
[White "Semenova, Alina"]
[Black "Zaksaite, Salomeja"]
[WhiteFideId "24113875"]
[BlackFideId "12801496"]
[WhiteElo "2163"]
[BlackElo "2324"]
[Result "1/2-1/2"]
[Round "10"]
[TimeControl "180+1"]
[Date "2023.10.31"]
[WhiteClock "0:00:24"]
[BlackClock "0:00:03"]
[Board "119"]

1. e4 {[%clk 0:03:00]}  d6 {[%clk 0:02:59]} 2. d4 {[%clk 0:02:57]}  Nf6 {[%clk 0:02:56]} 3. f3 {[%clk 0:02:56]}  g6 {[%clk 0:02:56]} 4. Be3 {[%clk 0:02:51]}  Bg7 {[%clk 0:02:56]} 5. Qd2 {[%clk 0:02:50]}  c6 {[%clk 0:02:53]} 6. Nc3 {[%clk 0:02:49]}  b5 {[%clk 0:02:52]} 7. a3 {[%clk 0:02:49]}  Nbd7 {[%clk 0:02:51]} 8. g4 {[%clk 0:02:47]}  Nb6 {[%clk 0:02:50]} 9. h4 {[%clk 0:02:45]}  h5 {[%clk 0:02:49]} 10. g5 {[%clk 0:02:45]}  Nh7 {[%clk 0:02:49]} 11. O-O-O {[%clk 0:02:40]}  a5 {[%clk 0:02:48]} 12. Kb1 {[%clk 0:02:14]}  Bd7 {[%clk 0:02:41]} 13. Nce2 {[%clk 0:01:56]}  Nc4 {[%clk 0:02:39]} 14. Qc1 {[%clk 0:01:54]}  Nxe3 {[%clk 0:02:38]} 15. Qxe3 {[%clk 0:01:55]}  b4 {[%clk 0:02:36]} 16. a4 {[%clk 0:01:54]}  O-O {[%clk 0:02:33]} 17. f4 {[%clk 0:01:50]}  Qb6 {[%clk 0:02:27]} 18. Nf3 {[%clk 0:01:47]}  Bg4 {[%clk 0:02:01]} 19. Bh3 {[%clk 0:01:46]}  e5 {[%clk 0:01:58]} 20. Bxg4 {[%clk 0:01:41]}  hxg4 {[%clk 0:01:57]} 21. Nh2 {[%clk 0:01:41]}  exd4 {[%clk 0:01:56]} 22. Nxd4 {[%clk 0:01:42]}  g3 {[%clk 0:01:54]} 23. Ng4 {[%clk 0:01:39]}  Rfe8 {[%clk 0:01:50]} 24. Rhe1 {[%clk 0:01:23]}  f5 {[%clk 0:01:41]} 25. Nxf5 {[%clk 0:01:21]}  Qxe3 {[%clk 0:01:40]} 26. Nfxe3 {[%clk 0:01:22]}  Rxe4 {[%clk 0:01:38]} 27. Ng2 {[%clk 0:01:21]}  Rae8 {[%clk 0:01:32]} 28. Rxe4 {[%clk 0:01:17]}  Rxe4 {[%clk 0:01:32]} 29. Rd3 {[%clk 0:01:17]}  Nf8 {[%clk 0:01:26]} 30. Rxg3 {[%clk 0:01:15]}  Ne6 {[%clk 0:01:24]} 31. Rf3 {[%clk 0:01:15]}  Nc5 {[%clk 0:01:23]} 32. Re3 {[%clk 0:01:10]}  Rxe3 {[%clk 0:01:21]} 33. N2xe3 {[%clk 0:01:11]}  Nxa4 {[%clk 0:01:22]} 34. f5 {[%clk 0:01:10]}  gxf5 {[%clk 0:01:19]} 35. Nxf5 {[%clk 0:01:10]}  Bxb2 {[%clk 0:01:18]} 36. g6 {[%clk 0:01:07]}  Bg7 {[%clk 0:01:11]} 37. h5 {[%clk 0:01:06]}  Nc3+ {[%clk 0:01:11]} 38. Kc1 {[%clk 0:01:06]}  Ne4 {[%clk 0:00:24]} 39. h6 {[%clk 0:01:04]}  Bc3 {[%clk 0:00:18]} 40. h7+ {[%clk 0:01:03]}  Kh8 {[%clk 0:00:18]} 41. Ngh6 {[%clk 0:01:03]}  Ng5 {[%clk 0:00:17]} 42. Nxd6 {[%clk 0:01:02]}  Kg7 {[%clk 0:00:09]} 43. Nhf5+ {[%clk 0:00:39]}  Kxg6 {[%clk 0:00:09]} 44. Ne7+ {[%clk 0:00:35]}  Kxh7 {[%clk 0:00:09]} 45. Nxc6 {[%clk 0:00:36]}  a4 {[%clk 0:00:08]} 46. Kb1 {[%clk 0:00:23]}  Ne6 {[%clk 0:00:06]} 47. Nb5 {[%clk 0:00:23]}  Nc5 {[%clk 0:00:06]} 48. Nxc3 {[%clk 0:00:22]}  bxc3 {[%clk 0:00:06]} 49. Nb4 {[%clk 0:00:20]}  Kg6 {[%clk 0:00:05]} 50. Nd5 {[%clk 0:00:20]}  Ne4 {[%clk 0:00:06]} 51. Ka2 {[%clk 0:00:21]}  Kf5 {[%clk 0:00:05]} 52. Ka3 {[%clk 0:00:21]}  Ke5 {[%clk 0:00:05]} 53. Nb4 {[%clk 0:00:21]}  Kd4 {[%clk 0:00:04]} 54. Kxa4 {[%clk 0:00:20]}  Nd2 {[%clk 0:00:03]} 55. Ka3 {[%clk 0:00:20]}  Nc4+ {[%clk 0:00:03]} 56. Kb3 {[%clk 0:00:20]}  Ne3 {[%clk 0:00:02]} 57. Ka4 {[%clk 0:00:21]}  Nxc2 {[%clk 0:00:01]} 58. Nxc2+ {[%clk 0:00:21]}  Kd3 {[%clk 0:00:02]} 59. Nb4+ {[%clk 0:00:22]}  Kd2 {[%clk 0:00:02]} 60. Kb3 {[%clk 0:00:23]}  c2 {[%clk 0:00:03]} 61. Nxc2 {[%clk 0:00:24]} 1/2-1/2


[Site "https://www.chess.com"]